fUST/lending_fUST_20260210
["ID","MTS","AMOUNT","RATE_DAILY","PERIOD"]
[404900582,1770665417550,500.0,0.00013699,2]
[404900604,1770665431993,-1000.0,0.00036,120]
[404900606,1770665432003,-397.91517571,0.00036444,30]
[404900611,1770665432048,-602.08482429,0.00036444,30]
[404900614,1770665432058,-366.82802324,0.00036511,10]
[404900616,1770665432073,-133.17197676,0.00036511,10]
[404900618,1770665432083,-261.4672259,0.00036512,2]
[404900734,1770665438149,-11457.9234002,0.00036512,2]
[404900736,1770665438159,-1128.0,0.00037,120]
[404900738,1770665438168,-5008.3992597,0.00038,2]
[404900740,1770665438178,-5067.9671377,0.00038719,2]
[404900742,1770665438192,-152.2402091,0.0003879,2]
[404900744,1770665438202,-6040.73586834,0.000399,2]
[404900746,1770665438211,-243.61965722,0.00039989,3]
[404900748,1770665438220,-500.0,0.00039989,3]
[404900750,1770665438230,-209.40437684,0.00039989,3]
[404900752,1770665438239,-250.0,0.00039989,3]
[404900754,1770665438248,-500.0,0.00039989,3]
[404900756,1770665438258,-217.15233878,0.00039989,3]
[404900757,1770665438267,-250.0,0.00039989,3]
[404900759,1770665438277,-500.0,0.00039989,3]
[404900761,1770665438287,-225.18697532,0.00039989,3]
[404900763,1770665438296,-250.0,0.00039989,3]
[404900765,1770665438305,-500.0,0.00039989,3]
[404900767,1770665438314,-233.51889341,0.00039989,3]
[404900769,1770665438324,-272.19696825,0.00039989,3]
[404900771,1770665438333,-242.15909246,0.00039989,3]
[404900773,1770665438343,-251.11897888,0.00039989,3]
[404900786,1770665438452,-260.4103811,0.00039989,3]
[404900788,1770665438461,-270.0455652,0.00039989,3]
[404900790,1770665438471,-326.79178953,0.00039989,3]
[404900792,1770665438480,-375.36355329,0.0003999,3]
[404900794,1770665438492,-366.27270795,0.0003999,3]
[404900797,1770665438502,-1488.37893971,0.0003999,3]
[404900881,1770665442393,500.0,0.00029516,2]
[404900882,1770665442447,342.27863882,0.00029516,2]
[404900908,1770665444491,-35.59966447,0.0003999,3]
[404900911,1770665446215,-2135.77397851,0.0003999,3]
[404900915,1770665446367,-487.19371471,0.0003999,3]
[404900916,1770665455879,633.36130171,0.00029516,2]
[404900917,1770665471584,500.0,0.00029516,2]
[404900918,1770665471634,643.95832687,0.00029516,2]
[404900919,1770665474610,309.94,0.00032304,2]
[404900920,1770665480174,5000.0,0.00030137,120]
[404900921,1770665486053,352.90196617,0.00013699,2]
[404900922,1770665490259,303.00636104,0.00029516,2]
[404900923,1770665492141,500.0,0.00029516,2]
[404900924,1770665492204,573.43643633,0.00029516,2]
[404900925,1770665499329,500.0,0.00013273,2]
[404900926,1770665499386,614.20020313,0.00013821,2]
[404900928,1770665634573,-152.24020911,0.0003879,2]
[404900929,1770665824566,500.0,0.00013273,2]
[404900930,1770665824599,461.30514048,0.00013821,2]
[404900981,1770666003351,538.69485952,0.00013273,2]
[404900993,1770666081638,501.01127403,0.00013699,2]
[404901260,1770666425121,-150.0,0.00025351,2]
[404901261,1770666425141,-797.57221061,0.0002579,2]
[404901272,1770666447084,-837.0,0.0002589,2]
[404901273,1770666447109,-5331.01570314,0.00026748,2]
[404901274,1770666447135,-300.0,0.00026848,2]
[404901275,1770666447160,-177.0,0.00027351,2]
[404901276,1770666447187,-263.94679169,0.00030497,2]
[404901277,1770666447213,-935.44791802,0.00031575,2]
[404901278,1770666447236,-230.511112,0.00033762,2]
[404901279,1770666447260,-9024.9598888,0.00036485,2]
[404901280,1770666447283,-187.131379,0.00038599,2]
[404901281,1770666447307,-152.24020911,0.0003879,2]
[404901282,1770666447331,-7661.62666172,0.0003879,2]
[404901287,1770666558095,-5000.0,0.00030137,120]
[404901288,1770666558117,-5000.0,0.00030137,120]
[404901290,1770666561648,195.11149013,0.00030137,120]
[404901291,1770666561767,1383.1355454,0.00035836,2]
[404901293,1770666576491,5000.0,0.00030137,120]
[404901296,1770666598540,5000.0,0.00030137,120]
[404901297,1770666607040,277.12604042,0.00013699,2]
[404901299,1770666620958,3994.37353429,0.00024953,2]
[404901332,1770666632185,-152.24020911,0.0003879,2]
[404901334,1770666632195,-1474.49330558,0.0003989,2]
[404901404,1770666638344,-1971.51095744,0.0003989,2]
[404901418,1770666638475,-41.30451787,0.0003989,2]
[404901420,1770666638485,-5436.66228147,0.000399,2]
[404901422,1770666638494,-997.02880917,0.0003999,2]
[404901424,1770666638505,-1061.41035797,0.0003999,2]
[404901427,1770666638517,-665.64611151,0.0003999,2]
[404901628,1770666640502,-13877.65854548,0.0003999,2]
[404901695,1770666646592,-576.0,0.0003999,2]
[404901696,1770666646837,-19071.82755655,0.0003999,2]
[404901697,1770666646847,-976.77107802,0.0003999,3]
[404901698,1770666646870,-19556.85072,0.0003999,3]
[404901700,1770666654054,250.0,0.00035287,2]
[404901701,1770666696633,150.0,0.0002589,2]
[404901702,1770666697012,177.0,0.0002789,2]
[404901703,1770666697411,204.0,0.0002989,2]
[404901704,1770666697791,231.0,0.0003189,2]
[404901705,1770666698189,258.0,0.0003389,120]
[404901706,1770666698593,285.0,0.0003589,120]
[404901739,1770666846021,515.39829676,0.00013699,2]
[404901753,1770666933836,500.0,0.00013699,2]
[404901755,1770666942718,1027.39277642,0.0003013,120]
[404901765,1770666974500,500.0,0.00013699,2]
[404901811,1770667222922,500.0,0.00013699,2]
[404901812,1770667222964,924.21621103,0.00014247,2]
[404901816,1770667275155,500.0,0.00021918,2]
[404901818,1770667294833,158.30619502,0.00013699,2]
[404901851,1770667503750,473.53260077,0.00021918,2]
[404901859,1770667632096,-150.0,0.00024196,2]
[404901860,1770667632116,-250.5,0.00025205,2]
[404901869,1770667652085,-150.0,0.00024701,2]
[404901870,1770667652105,-6912.14891207,0.00025105,2]
[404901871,1770667652126,-249.5,0.00025205,2]
[404901872,1770667652148,-500.0,0.00025205,2]
[404901873,1770667652173,-213.94,0.00025205,2]
[404901874,1770667652194,-1068.95461782,0.00030205,2]
[404901875,1770667652214,-480.4966789,0.00031929,30]
[404901876,1770667652234,-426.75640134,0.00035158,2]
[404901877,1770667652258,-172.64322256,0.00035249,2]
[404901878,1770667652280,-500.0,0.00037103,15]
[404901879,1770667652302,-500.0,0.00037103,15]
[404901880,1770667652324,-500.0,0.00037103,7]
[404901881,1770667652347,-500.0,0.00037103,7]
[404901882,1770667652368,-550.0,0.00037103,15]
[404901883,1770667652391,-500.0,0.00037103,15]
[404901884,1770667652412,-500.0,0.00037103,7]
[404901885,1770667652433,-500.0,0.00037103,15]
[404901886,1770667652454,-500.0,0.00037103,7]
[404901887,1770667652475,-500.0,0.00037103,15]
[404901888,1770667652496,-617.17021463,0.00037103,15]
[404901889,1770667652516,-500.0,0.00037103,7]
[404901890,1770667652537,-500.0,0.00037103,7]
[404901891,1770667652557,-500.0,0.00037103,15]
[404901892,1770667652578,-500.0,0.00037103,7]
[404901893,1770667652599,-500.0,0.00037103,15]
[404901894,1770667652620,-500.0,0.00037103,7]
[404901895,1770667652643,-219.44954652,0.00037103,7]
[404901896,1770667652662,-500.0,0.00037103,15]
[404901897,1770667652683,-500.0,0.00037103,7]
[404901898,1770667652705,-500.0,0.00037103,7]
[404901899,1770667652725,-500.0,0.00037103,15]
[404901900,1770667652861,-500.0,0.00037103,7]
[404901901,1770667652885,-500.0,0.00037103,7]
[404901902,1770667652905,-4741.33959823,0.00037104,2]
[404901907,1770667760098,-206.57476703,0.00031575,2]
[404901908,1770667760117,-250.0,0.00035287,2]
[404901912,1770667816995,552.85532759,0.00013273,2]
[404901940,1770667832364,-195.89664253,0.00036661,2]
[404901942,1770667832374,-400.0,0.00037119,2]
[404901943,1770667832383,-181.0,0.00037119,3]
[404901944,1770667832393,-1600.0,0.00037119,3]
[404901945,1770667832402,-6792.00452699,0.0003712,2]
[404901946,1770667832417,-600.0,0.0003712,2]
[404901947,1770667832429,-1160.72508389,0.0003712,2]
[404901948,1770667832721,544.14263066,0.00013699,2]
[404902014,1770667838836,-3608.89563372,0.0003712,2]
[404902016,1770667838846,-162.58,0.000377,3]
[404902018,1770667838856,-179.6855794,0.00037703,15]
[404902020,1770667838865,-500.0,0.00037703,7]
[404902022,1770667838875,-191.04994961,0.00037703,7]
[404902024,1770667838885,-450.0,0.00037703,15]
[404902026,1770667838894,-450.0,0.00037703,15]
[404902028,1770667838904,-1147.5768051,0.00037704,2]
[404902030,1770667838914,-18396.2153627,0.00037704,2]
[404902033,1770667838927,-3231.81641057,0.00038256,2]
[404902035,1770667838937,-151.0,0.00038356,7]
[404902037,1770667838946,-151.0,0.00038356,7]
[404902039,1770667838956,-151.0,0.00038356,120]
[404902041,1770667838966,-151.0,0.00038356,120]
[404902043,1770667838977,-151.0,0.00038356,120]
[404902045,1770667838986,-15705.61237342,0.00038356,2]
[404902047,1770667839001,-1024.26882929,0.00038356,2]
[404902159,1770667840208,338.72621964,0.00030137,120]
[404902199,1770667840620,-2750.04507,0.00038356,2]
[404902381,1770667845728,-396.09015969,0.00038356,2]
[404902382,1770667845775,-806.99127554,0.00038356,2]
[404902400,1770667846474,-16914.02603211,0.00038356,2]
[404902401,1770667846484,-407.0,0.000384,11]
[404902402,1770667846494,-712.0,0.00038655,11]
[404902403,1770667846503,-758.0,0.0003872,11]
[404902404,1770667846514,-181.1213232,0.0003879,2]
[404902405,1770667846523,-401.0,0.0003893,11]
[404902406,1770667846533,-405.0,0.0003904,11]
[404902408,1770667846543,-500.0,0.00039209,2]
[404902409,1770667846554,-500.0,0.00039209,2]
[404902411,1770667846564,-712.0,0.0003921,11]
[404902412,1770667846573,-242.22,0.0003943,11]
[404902413,1770667846582,-401.0,0.00039436,11]
[404902414,1770667846592,-401.0,0.0003953,11]
[404902415,1770667846601,-600.0,0.00039625,60]
[404902416,1770667846611,-206.0,0.00039713,5]
[404902417,1770667846620,-317.0,0.00039756,11]
[404902418,1770667846631,-744.0,0.0003985,11]
[404902419,1770667846640,-1823.0,0.00039865,5]
[404902420,1770667846650,-500.0,0.00039899,30]
[404902421,1770667846660,-500.0,0.00039899,30]
[404902422,1770667846669,-500.0,0.00039899,30]
[404902423,1770667846678,-86.2971842,0.000399,2]
[404902424,1770667846703,-5350.36509727,0.000399,2]
[404902425,1770667846713,-245.45226737,0.0003998,3]
[404902426,1770667846724,-965.30994956,0.0003998,3]
[404902427,1770667846733,-500.0,0.00039989,30]
[404902428,1770667846743,-151.0,0.00039989,120]
[404902429,1770667846752,-293.36757,0.00039989,120]
[404902430,1770667846761,-293.36757,0.00039989,120]
[404902431,1770667846775,-293.36757,0.00039989,120]
[404902432,1770667846785,-293.36757,0.00039989,120]
[404902433,1770667846794,-321.617553,0.00039989,28]
[404902434,1770667846806,-321.617553,0.00039989,28]
[404902435,1770667846816,-321.617553,0.00039989,28]
[404902436,1770667846825,-321.617553,0.00039989,28]
[404902437,1770667846835,-151.0,0.00039989,120]
[404902438,1770667846844,-151.0,0.00039989,120]
[404902439,1770667846854,-209.666546,0.00039989,2]
[404902440,1770667846863,-151.0,0.00039989,120]
[404902441,1770667846872,-247.990584,0.00039989,120]
[404902442,1770667846882,-262.340705,0.00039989,120]
[404902443,1770667846891,-209.486994,0.00039989,120]
[404902444,1770667846901,-151.0,0.00039989,120]
[404902446,1770667846911,-151.0,0.00039989,120]
[404902447,1770667846922,-151.0,0.00039989,120]
[404902448,1770667846934,-151.0,0.00039989,120]
[404902449,1770667846944,-151.0,0.00039989,120]
[404902450,1770667846953,-151.0,0.00039989,120]
[404902451,1770667846963,-997.02880917,0.0003999,2]
[404902452,1770667846972,-286.335041,0.0003999,120]
[404902453,1770667846981,-151.0,0.0003999,120]
[404902454,1770667846991,-151.0,0.0003999,120]
[404902455,1770667847001,-151.0,0.0003999,120]
[404902456,1770667847011,-405.1,0.0003999,3]
[404902457,1770667847022,-202.55,0.0003999,3]
[404902458,1770667847031,-607.66,0.0003999,3]
[404902459,1770667847041,-4329.90599849,0.0003999,3]
[404902460,1770667855256,3553.84387572,0.00030137,120]
[404902462,1770667884653,500.0,0.00013699,2]
[404902463,1770667884710,503.18327958,0.00014247,2]
[404902464,1770667889857,500.0,0.00013699,2]
[404902465,1770667889904,532.93019237,0.00014247,2]
[404902467,1770667894259,309.23010953,0.00013273,2]
[404902474,1770667944668,150.0,0.0002589,2]
[404902475,1770667945101,177.0,0.0002789,2]
[404902476,1770668134012,500.0,0.00013273,2]
[404902477,1770668134063,1000.0,0.00013821,2]
[404902486,1770668424956,500.0,0.00013273,2]
[404902488,1770668525218,500.0,0.00013273,2]
[404902504,1770668827092,-150.0,0.00025547,2]
[404902505,1770668827112,-243.88,0.000259,3]
[404902506,1770668827132,-177.0,0.00027547,2]
[404902507,1770668827155,-204.0,0.00029547,2]
[404902508,1770668827176,-212.47697599,0.00031547,2]
[404902509,1770668848098,-18.52302401,0.00031547,2]
[404902510,1770668848121,-1013.60323052,0.00031849,2]
[404902511,1770668848142,-206.851087,0.00033697,2]
[404902512,1770668848163,-200.0,0.0003523,2]
[404902513,1770668848183,-331.16368763,0.00036341,2]
[404902514,1770668848206,-187.131378,0.00037104,2]
[404902515,1770668848239,-300.0,0.00037702,2]
[404902516,1770668848262,-500.0,0.00037703,120]
[404902517,1770668848284,-9434.05557051,0.00037703,2]
[404902519,1770668907627,6094.33100437,0.00017,2]
[404902520,1770668919902,207.0,0.0002,10]
[404902521,1770668923298,1178.07438165,0.0002,10]
[404902522,1770668952099,-174.56661193,0.0002465,2]
[404902523,1770668952118,-993.26051239,0.00025,15]
[404902546,1770669031551,-499.25510445,0.00036,2]
[404902547,1770669031561,-352.26134259,0.0003879,2]
[404902559,1770669031674,-711.47783842,0.00038997,30]
[404902561,1770669031684,-258.12263486,0.00039842,5]
[404902563,1770669031694,-4892.99605335,0.000399,2]
[404902564,1770669031703,-2827.83935924,0.000399,2]
[404902566,1770669031712,-500.0,0.00039989,30]
[404902568,1770669031721,-503.57547916,0.00039989,120]
[404902569,1770669031731,-202.55,0.0003999,3]
[404902571,1770669031740,-607.65,0.0003999,3]
[404902572,1770669031750,-6318.09027927,0.0003999,3]
[404902573,1770669031762,-407.49921964,0.0003999,3]
[404902574,1770669031781,-2410.72348255,0.0003999,3]
[404902752,1770669041374,-366.4645,0.0003999,3]
[404902775,1770669045850,-2304.52210116,0.0003999,3]
[404902777,1770669046106,-1354.59199752,0.0003999,3]
[404902778,1770669049321,4638.38744133,0.00024953,2]
[404902782,1770669129786,211.44754782,0.0002,2]
[404902783,1770669196171,-150.0,0.0002589,2]
[404902784,1770669196199,-177.0,0.0002789,2]
[404902785,1770669196227,-204.0,0.0002989,2]
[404902786,1770669196253,-231.0,0.0003189,2]
[404902787,1770669196279,-258.0,0.0003389,120]
[404902788,1770669212987,-184.60451442,0.0003589,120]
[404902789,1770669229858,-221.64,0.000385,2]
[404902790,1770669229881,-221.64,0.00038546,2]
[404902791,1770669229893,-3091.49866372,0.00038546,2]
[404902792,1770669246894,608.32613042,0.00013273,2]
[404902795,1770669251295,504.08949317,0.00013699,2]
[404902796,1770669251324,500.0,0.00013273,2]
[404902797,1770669251353,500.0,0.00013273,2]
[404902802,1770669306711,281.99454491,0.00013273,2]
[404902803,1770669324010,1000.0,0.00013821,2]
[404902804,1770669324059,500.0,0.00013273,2]
[404902805,1770669325642,478.19814633,0.00013699,2]
[404902806,1770669326619,500.0,0.00013273,2]
[404902807,1770669335828,500.0,0.00013273,2]
[404902808,1770669340545,300.0,0.00013673,2]
[404902809,1770669426632,500.0,0.00013273,2]
[404902810,1770669426773,620.17190745,0.00013273,2]
[404902811,1770669428319,1000.0,0.00013821,2]
[404902812,1770669428373,500.0,0.00013273,2]
[404902813,1770669428430,500.0,0.00014368,2]
[404902814,1770669429696,502.01829135,0.00013699,2]
[404902815,1770669436380,500.0,0.00013273,2]
[404902816,1770669609701,500.0,0.00013273,2]
[404902817,1770669613275,500.0,0.00013273,2]
[404902825,1770669614564,300.0,0.00013673,2]
[404902826,1770669614615,300.0,0.00014221,2]
[404902833,1770669617144,500.0,0.00013699,2]
[404902840,1770669621402,500.0,0.00013273,2]
[404902841,1770669621455,524.98739511,0.00013821,2]
[404902854,1770669667713,301.61574,0.00013273,2]
[404902856,1770669681338,500.0,0.00013273,2]
[404902857,1770669681389,725.35356092,0.00013821,2]
[404902858,1770669690298,502.71454207,0.00013273,2]
[404902859,1770669726202,500.0,0.00013699,2]
[404902860,1770669728297,500.0,0.00013699,2]
[404902861,1770669728358,500.0,0.00014247,2]
[404902862,1770669732221,500.0,0.00013273,2]
[404902863,1770669732279,220.23495117,0.00013821,2]
[404902873,1770669846507,504.37145005,0.00013699,2]
[404902879,1770669905244,500.0,0.00013699,2]
[404902880,1770669905292,1000.0,0.00014247,2]
[404902881,1770669906593,500.0,0.00013699,2]
[404902882,1770669906657,500.0,0.00013273,2]
[404902883,1770669906922,175.69914693,0.00013273,2]
[404902888,1770669913277,500.0,0.00013699,2]
[404902889,1770669915208,180.50448586,0.00013699,2]
[404902890,1770669915574,314.14228189,0.00013273,2]
[404902891,1770669916228,500.0,0.00013273,2]
[404902892,1770669918334,500.0,0.00013699,2]
[404902893,1770669919379,500.0,0.00013699,2]
[404902894,1770669919441,500.0,0.00014247,2]
[404902897,1770669931272,316.1227733,0.00013699,2]
[404902905,1770669973528,500.0,0.00013273,2]
[404902908,1770669982389,508.16028706,0.00013699,2]
[404902912,1770669994093,-281.42395555,0.00031116,2]
[404902916,1770670037078,-200.0,0.00027397,2]
[404902917,1770670037100,-5000.0,0.00030137,120]
[404902918,1770670037121,-3440.71001153,0.00030137,120]
[404903014,1770670146143,-1559.28998847,0.00030137,120]
[404903015,1770670146167,-5000.0,0.00030137,120]
[404903016,1770670146206,-38.97302473,0.00031116,2]
[404903017,1770670146229,-1600.0,0.00031215,3]
[404903018,1770670146249,-400.0,0.0003153,3]
[404903019,1770670146270,-1114.54649697,0.00031849,2]
[404903020,1770670146291,-165.0,0.00035,2]
[404903021,1770670151969,5000.0,0.00024953,2]
[404903022,1770670159846,1862.10657663,0.00024953,2]
[404903024,1770670162085,-3137.89342337,0.00024953,2]
[404903026,1770670174792,4277.74973927,0.00024953,2]
[404903027,1770670174815,722.25026073,0.00024953,2]
[404903028,1770670182560,2397.11011949,0.00024953,2]
[404903030,1770670198035,2315.21531178,0.00024953,2]
[404903031,1770670198057,2684.78468822,0.00024953,2]
[404903048,1770670214599,503.44585803,0.00013699,2]
[404903072,1770670231754,-155.68589362,0.00037247,2]
[404903074,1770670231764,-221.64,0.000383,3]
[404903076,1770670231774,-3156.0101697,0.00038327,2]
[404903077,1770670231783,-753.51466063,0.00038546,2]
[404903078,1770670231794,-1081.66850248,0.00038546,2]
[404903342,1770670245938,-4028.71196807,0.00038546,2]
[404903343,1770670245947,-1464.37945838,0.00039208,2]
[404903344,1770670245994,-7620.5944903,0.00039208,2]
[404903345,1770670246004,-4403.69644806,0.000399,2]
[404903346,1770670246013,-1855.90906164,0.000399,2]
[404903375,1770670285972,367.49330914,0.00013273,2]
[404903376,1770670295020,339.17368825,0.00013699,2]
[404903377,1770670295235,500.0,0.00013273,2]
[404903378,1770670295792,500.0,0.00013699,2]
[404903381,1770670328986,500.0,0.00013699,2]
[404903470,1770670580652,500.0,0.00013273,2]
[404903471,1770670583672,500.0,0.00013273,2]
[404903472,1770670587448,500.0,0.00013273,2]
[404903473,1770670588082,500.0,0.00013273,2]
[404903517,1770670730436,1273.79,0.000231,2]
[404903607,1770670901404,686.03623964,0.00013821,2]
[404903608,1770670901435,500.0,0.00013273,2]
[404903611,1770670902267,150.48647441,0.00016438,2]
[404903662,1770670924397,500.0,0.00014247,2]
[404903663,1770670924454,500.0,0.00013699,2]
[404903664,1770670925897,500.0,0.00013273,2]
[404903665,1770670925948,500.0,0.00013821,2]
[404903666,1770670929917,500.0,0.00013273,2]
[404903667,1770670929973,1000.0,0.00013821,2]
[404903671,1770670948880,-1392.28285195,0.00024911,2]
[404903691,1770671103907,500.0,0.00013273,2]
[404903692,1770671103951,606.5995179,0.00013821,2]
[404903693,1770671116184,608.27543567,0.00013699,2]
[404903694,1770671120083,511.64534676,0.00013699,2]
[404903695,1770671121864,600.0,0.00014221,2]
[404903696,1770671121895,300.0,0.00014768,2]
[404903697,1770671121945,300.0,0.00013673,2]
[404903698,1770671122097,500.0,0.00013699,2]
[404903699,1770671122155,1000.0,0.00014247,2]
[404903700,1770671122210,1000.0,0.00014795,2]
[404903705,1770671191131,-388.48168105,0.00024415,2]
[404903706,1770671193165,500.0,0.00013699,2]
[404903708,1770671233077,-2586.81160974,0.00024171,2]
[404903709,1770671233099,-3219.235467,0.00024415,2]
[404903710,1770671233121,-150.0,0.00024787,2]
[404903711,1770671233142,-822.0,0.00025164,2]
[404903712,1770671233162,-818.2092116,0.00026574,2]
[404903721,1770671345089,-5000.0,0.00026308,2]
[404903723,1770671345108,-381.7907884,0.00026574,2]
[404903724,1770671345129,-242.69290339,0.00026787,2]
[404903725,1770671345149,-300.0,0.00026847,2]
[404903726,1770671345169,-199.59412821,0.00026848,2]
[404903727,1770671352122,-100.40587179,0.00026848,2]
[404903728,1770671352146,-300.0,0.00026848,2]
[404903729,1770671352171,-300.0,0.00026848,2]
[404903730,1770671352197,-1680.0,0.0002887,2]
[404903731,1770671352224,-420.0,0.00029029,2]
[404903732,1770671352248,-420.0,0.0002903,2]
[404903733,1770671352274,-300.0,0.0002903,2]
[404903734,1770671352298,-327.0,0.0002903,2]
[404903735,1770671352322,-322.106644,0.00033446,2]
[404903736,1770671352348,-157.128494,0.00035083,2]
[404903737,1770671352374,-191.33277215,0.00035694,2]
[404903738,1770671354803,1024.26882929,0.0002903,2]
[404903770,1770671431896,-2504.5706293,0.00036068,2]
[404903771,1770671431907,-1000.0,0.00036068,2]
[404903772,1770671431917,-333.22789261,0.00037704,2]
[404903773,1770671431926,-2000.0,0.00038299,3]
[404903774,1770671431935,-182.20698266,0.00038356,2]
[404903775,1770671431948,-380.45104539,0.00038398,2]
[404903776,1770671432058,-152.24020911,0.0003879,2]
[404903777,1770671432070,-336.028127,0.00039858,5]
[404903778,1770671432079,-250.0,0.00039876,2]
[404903779,1770671432090,-500.0,0.00039876,2]
[404903780,1770671432099,-500.0,0.00039876,2]
[404903781,1770671432109,-250.0,0.00039876,2]
[404903782,1770671432119,-209.40437684,0.00039876,2]
[404903783,1770671432128,-217.15233878,0.00039876,2]
[404903784,1770671432138,-157.88413829,0.00039876,2]
[404903785,1770671432148,-250.0,0.00039876,2]
[404903786,1770671432157,-250.0,0.00039876,2]
[404903787,1770671432167,-250.0,0.00039876,2]
[404903788,1770671432176,-250.0,0.00039876,2]
[404903789,1770671432186,-2721.73989109,0.000399,2]
[404903790,1770671432195,-250.0,0.000399,10]
[404903791,1770671432204,-3963.3268032,0.000399,2]
[404903792,1770671432214,-500.0,0.00039987,7]
[404903793,1770671432223,-251.15458139,0.00039987,31]
[404903794,1770671432234,-248.84541861,0.00039987,31]
[404903795,1770671432244,-500.0,0.00039987,31]
[404903796,1770671432253,-500.0,0.00039987,7]
[404903797,1770671432262,-500.0,0.00039987,7]
[404903798,1770671432275,-500.0,0.00039987,31]
[404903799,1770671432284,-500.0,0.00039987,31]
[404903800,1770671432294,-426.15458139,0.00039987,7]
[404903801,1770671432306,-73.84541861,0.00039987,7]
[404903802,1770671432315,-500.0,0.00039987,7]
[404903803,1770671432324,-345.0,0.00039987,31]
[404903804,1770671432334,-329.56249418,0.00039987,7]
[404903805,1770671432346,-405.1,0.0003999,3]
[404903806,1770671432356,-570.70067588,0.0003999,3]
[404904337,1770671445661,-250.0,0.00039876,2]
[404904338,1770671445671,-219.0,0.00039876,2]
[404904339,1770671445721,-31.0,0.00039876,2]
[404904340,1770671445730,-12.16463123,0.00039876,2]
[404904341,1770671446009,-151.33965638,0.00039876,2]
[404904342,1770671446153,-86.49571239,0.00039876,2]
[404904343,1770671446163,-193.80447074,0.00039876,2]
[404904344,1770671446172,-728.35376944,0.0003999,3]
[404904345,1770671446333,492.434724,0.00030137,120]
[404904347,1770671483650,501.44248155,0.00013699,2]
[404904348,1770671496965,500.0,0.00013699,2]
[404904349,1770671498809,500.0,0.00013699,2]
[404904350,1770671498871,501.15046698,0.00013273,2]
[404904351,1770671504321,500.0,0.00013699,2]
[404904352,1770671504466,210.45223575,0.00013273,2]
[404904353,1770671504485,289.54776425,0.00013273,2]
[404904354,1770671504524,724.94157864,0.00013821,2]
[404910451,1770671704131,352.90196617,0.00013699,2]
[404910452,1770671705701,614.20020313,0.00013273,2]
[404910453,1770671719215,544.14263066,0.00013699,2]
[404910458,1770671728589,552.85532759,0.00013273,2]
[404910482,1770671767889,500.0,0.00013273,2]
[404910483,1770671767917,1000.0,0.00013821,2]
[404910495,1770671796252,500.0,0.00013699,2]
[404910496,1770671796307,193.65873791,0.00014247,2]
[404910544,1770672012574,278.80286206,0.00013273,2]
[404910545,1770672013813,206.32990251,0.00013273,2]
[404910546,1770672029288,500.0,0.00013699,2]
[404910547,1770672029340,440.91853521,0.00014247,2]
[404910548,1770672034820,200.0,0.00027,120]
[404910549,1770672082847,500.0,0.00013699,2]
[404910550,1770672092203,500.0,0.00013699,2]
[404910551,1770672092438,160.516292,0.00013699,2]
[404910692,1770672365157,275.05842136,0.00013273,2]
[404910696,1770672397095,500.0,0.00013273,2]
[404910719,1770672443165,-2120.21909385,0.00024663,2]
[404910745,1770672546105,-2879.78090615,0.00024663,2]
[404910746,1770672546135,-150.0,0.00025059,2]
[404910747,1770672546159,-177.0,0.00027059,2]
[404910748,1770672546184,-204.0,0.00029059,2]
[404910749,1770672546210,-1126.45503134,0.00030059,2]